[Event "Silver Lake Open-A 2018"]
[Site "Veliko Gradiste"]
[Date "2018.06.24"]
[Round "9"]
[White "Mitev, Valentin"]
[Black "Marcetic, Nikola"]
[Result "1/2-1/2"]
[ECO "D35"]
[WhiteElo "2086"]
[BlackElo "2342"]
[Annotator "NA"]
[PlyCount "116"]
[EventDate "2018.06.17"]
[EventType "swiss"]
[EventCountry "SRB"]
[SourceTitle "playchess.com"]
[Source "ChessBase"]
[SourceQuality "1"]
[TimeControl "40/5400+30:900+30"]

1. d4 {[%emt 0:00:00]} d5 {[%emt 0:00:42]} 2. c4 {[%emt 0:00:00]} e6 {[%emt 0:00:37]} 3. Nc3 {[%emt 0:00:00]} Nf6 {[%emt 0:01:04]} 4. cxd5 {[%emt 0:00:15]} exd5 {[%emt 0:00:34]} 5. Bg5 {[%emt 0:00:12]} Be7 {[%emt 0:00:06]} 6. e3 {[%emt 0:00:10]} c6 {[%emt 0:00:10]} 7. Qc2 {[%emt 0:00:22]} Nbd7 {[%emt 0:00:43]} 8. Bd3 {[%emt 0:00:17]} Nh5 {[%emt 0:04:07]} 9. Bxe7 {[%emt 0:00:18]} Qxe7 {[%emt 0:00:02]} 10. Nge2 {[%emt 0:00:12]} g6 {[%emt 0:01:59]} 11. O-O {[%emt 0:04:10]} O-O {[%emt 0:03:01]} 12. Rae1 {[%emt 0:05:29] D36: Queen's Gambit Declined: Exchange Variation: Main line (5 Bg5 c6 6 Qc2)} (12. Rab1 a5 13. Rbe1 Nb6 14. Nc1 Ng7 15. f3 Bf5 16. e4 dxe4 17. fxe4 Be6 18. Qf2 f5 19. exf5 Nxf5 20. Nb3 Ng7 21. Qe3 Rxf1+ 22. Rxf1 Re8 23. Nc5 Bf5 {½-½ (23) Korobov,A (2711)-Yilmaz,M (2630) Khanty-Mansiysk 2017}) 12... f5 {[%emt 0:04:13]} 13. Nc1 {[%emt 0:03:20]} Qg5 $146 {[%emt 0:06:28]} ({Predecessor:} 13... Ndf6 14. f3 Bd7 15. a3 Qd6 16. Qd2 f4 17. e4 dxe4 18. Bc4+ Be6 19. Nxe4 Nxe4 20. Bxe6+ Qxe6 21. Rxe4 {1-0 (44) Gonzalez Garcia,J (2494)-Doghri,N (2364) Turin 2006}) 14. f3 {[%emt 0:04:21]} Ndf6 {[%emt 0:05:51]} 15. b4 {[%emt 0:06:06]} a6 {[%emt 0:05:45]} 16. Nb3 {[%emt 0:14:25]} f4 {[%emt 0:06:17]} 17. e4 {[%emt 0:00:51]} dxe4 {[%emt 0:13:00]} 18. Nxe4 {[%emt 0:00:05]} Nxe4 {[%emt 0:00:10]} 19. Rxe4 {[%emt 0:03:32]} Bf5 {[%emt 0:16:16]} 20. Re5 {[%emt 0:00:06]} Ng7 {[%emt 0:00:15]} 21. Nc5 {[%emt 0:04:05]} Rad8 {[%emt 0:05:21]} 22. Qc4+ {[%emt 0:06:00]} Kh8 {[%emt 0:00:12]} 23. Bxf5 {[%emt 0:02:50]} Rxf5 {[%emt 0:01:09]} 24. Nxb7 {[%emt 0:03:15]} Rxd4 {[%emt 0:04:16]} 25. Qxd4 {[%emt 0:10:45]} Rxe5 {[%emt 0:00:05]} 26. Nd8 $11 {[%emt 0:09:08]} (26. h4 $5 {[%cal Rh4g5]} Qe7 27. Qxf4 $16) 26... Rd5 {[%emt 0:00:00]} 27. Nf7+ {[%emt 0:00:14]} Kg8 {[%emt 0:02:40]} 28. Qxg7+ {[%emt 0:00:06]} Kxg7 {[%emt 0:00:05]} 29. Nxg5 {[%emt 0:00:02]} Rxg5 {[%emt 0:00:07]} 30. Rc1 {[%emt 0:00:02]} Rb5 {[%emt 0:03:13]} 31. Rc4 {[%emt 0:06:12]} a5 {[%emt 0:00:10]} 32. a3 {[%emt 0:00:33]} axb4 {[%emt 0:00:10]} 33. axb4 {[%emt 0:00:04]} g5 {[%emt 0:00:31]} 34. h4 {[%emt 0:00:20]} gxh4 {[%emt 0:09:53]} 35. Kh2 {[%emt 0:00:57]} h6 {[%emt 0:04:19]} 36. Kh3 {[%emt 0:01:12]} Rg5 {[%emt 0:03:06]} 37. Rxc6 {[%emt 0:06:43]} Rg3+ {[%emt 0:00:05]} 38. Kxh4 {[%emt 0:01:30]} Rxg2 {[%emt 0:00:06]} 39. Rc4 {[%emt 0:00:19]} Kg6 {[%emt 0:01:00]} 40. Rxf4 {[%emt 0:00:00]} Rb2 {[%emt 0:00:20]} 41. Rc4 {[%emt 0:00:50]} Kf5 {[%emt 0:04:10]} 42. Kg3 {[%emt 0:00:54]} Rb3 {[%emt 0:04:14]} 43. Rc5+ {[%emt 0:00:30]} Kf6 {[%emt 0:00:11]} 44. b5 {[%emt 0:00:15]} Rb4 {[%emt 0:01:24]} 45. Rc6+ {[%emt 0:01:00]} Kg5 {[%emt 0:01:48]} 46. f4+ {[%emt 0:01:18]} Kf5 {[%emt 0:03:26]} 47. Rc5+ {[%emt 0:00:07]} Ke6 {[%emt 0:01:33]} 48. Kg4 {[%emt 0:02:17]} Rb1 {[%emt 0:00:11]} 49. Rc6+ {[%emt 0:01:15]} Kd7 {[%emt 0:01:04]} 50. Rb6 {[%emt 0:00:22]} Kc7 {[%emt 0:00:35]} 51. Rxh6 {[%emt 0:00:06]} Rxb5 {[%emt 0:00:07]} 52. Re6 {[%emt 0:00:11]} Kd7 {[%emt 0:00:33]} 53. Re3 {[%emt 0:00:44]} Rb8 {[%emt 0:01:36]} 54. f5 {[%emt 0:00:22]} Rg8+ {[%emt 0:00:23]} 55. Kf4 {[%emt 0:00:04]} Re8 {[%emt 0:00:44]} 56. Ra3 {[%emt 0:01:40]} Ke7 {[%emt 0:00:46]} 57. Ra6 {[%emt 0:00:31]} Kf7 {[%emt 0:00:06]} 58. Rb6 {[%emt 0:01:24]} Re1 {[%emt 0:00:09] Ke4} 1/2-1/2